bitfinex/quotes_BTCUSD_20250330
["timestamp","ask_amount","ask_price","bid_price","bid_amount"]
[1743374048057,0.3,82432.0,82429.0,0.003]
[1743374048432,0.3,82432.0,82429.0,0.006]
[1743374048638,0.3,82432.0,82423.0,0.0765]
[1743374048835,0.3,82432.0,82429.0,0.003]
[1743374049036,0.0001682,82438.0,82429.0,0.005]
[1743374049264,0.0001682,82438.0,82429.0,0.003]
[1743374049426,0.0001682,82438.0,82425.0,0.242643]
[1743374049624,0.0001682,82438.0,82429.0,0.006]
[1743374049845,0.0001682,82438.0,82436.0,0.254741]
[1743374050047,0.0001682,82438.0,82437.0,0.01213]
[1743374050297,0.0001682,82438.0,82436.0,0.24929679]
[1743374050448,0.0001682,82438.0,82437.0,0.01213]
[1743374050645,0.0001682,82438.0,82437.0,0.01455579]
[1743374050845,0.0001682,82438.0,82437.0,0.16462765]
[1743374051493,0.0001683,82448.0,82445.0,0.012129]
[1743374051714,0.0001683,82448.0,82445.0,0.33833916]
[1743374051934,0.0001683,82448.0,82445.0,0.335914]
[1743374052976,0.0001683,82448.0,82445.0,0.24128]
[1743374053377,0.0001683,82448.0,82445.0,0.254409]
[1743374053679,0.0001683,82448.0,82445.0,0.259409]
[1743374054001,0.0001683,82448.0,82445.0,0.28833259]
[1743374054723,0.0001683,82448.0,82445.0,0.27620359]
[1743374055048,0.0001683,82448.0,82445.0,0.24728]
[1743374055258,0.2427453,82448.0,82445.0,0.24728]
[1743374055525,0.0001683,82448.0,82445.0,0.24728]
[1743374055732,0.24258,82447.0,82445.0,0.24728]
[1743374055941,0.24258,82447.0,82445.0,0.01]
[1743374056197,0.242585,82445.0,82439.0,0.15608]
[1743374056679,0.242588,82444.0,82439.0,0.15608]
[1743374056877,0.0001683,82448.0,82439.0,0.15608]
[1743374057083,0.242588,82444.0,82438.0,0.0812]
[1743374057266,0.242588,82444.0,82437.0,0.20524]
[1743374057267,0.242622,82433.0,82430.0,0.0812]
[1743374058245,0.242621,82434.0,82430.0,0.0812]
[1743374058465,0.27067376,82440.0,82430.0,0.0812]
[1743374058466,0.3,82440.0,82430.0,0.0812]
[1743374058666,0.3,82440.0,82430.0,0.08362599]
[1743374058667,0.02394053,82439.0,82430.0,0.08362599]
[1743374058911,0.02394053,82439.0,82430.0,0.0812]
[1743374059116,0.3,82437.0,82430.0,0.0872]
[1743374059493,0.3,82437.0,82430.0,0.0922]
[1743374059695,0.3,82437.0,82430.0,0.0812]
[1743374060115,0.3,82437.0,82430.0,0.0852]
[1743374060374,0.3,82438.0,82430.0,0.0852]
[1743374060918,0.24261,82437.0,82430.0,0.0852]
[1743374061119,0.24261,82437.0,82430.0,0.0892]
[1743374061319,0.24261,82437.0,82430.0,0.0852]
[1743374061519,0.24261,82437.0,82430.0,0.0812]
[1743374061725,0.242623,82433.0,82430.0,0.0902]
[1743374061926,0.242623,82434.0,82430.0,0.0902]
[1743374062138,0.242623,82434.0,82430.0,0.0862]
[1743374062501,0.242623,82434.0,82430.0,0.0852]
[1743374062710,0.3,82439.0,82430.0,0.0812]
[1743374062902,0.242606,82438.0,82430.0,0.0872]
[1743374063111,0.3,82439.0,82430.0,0.0872]
[1743374063288,0.3,82439.0,82430.0,0.0902]
[1743374063816,0.3,82439.0,82430.0,0.0905364]
[1743374064018,0.254754,82433.0,82430.0,0.0093364]
[1743374064173,0.254758,82431.0,82430.0,0.0093364]
[1743374065010,0.254758,82431.0,82430.0,0.0003364]
[1743374065377,0.254758,82431.0,82430.0,0.0063364]
[1743374065582,0.254758,82431.0,82430.0,0.0033364]
[1743374065786,0.242627,82431.0,82430.0,0.0023364]
[1743374066234,0.242627,82431.0,82430.0,0.0043364]
[1743374067574,0.02426392,82442.0,82432.0,0.242624]
[1743374067815,0.26685892,82442.0,82433.0,0.0755]
[1743374068425,0.4181,82444.0,82435.0,0.01213]
[1743374068622,0.3,82443.0,82433.0,0.0755]
[1743374068840,0.3,82443.0,82434.0,0.0483]
[1743374069389,0.660689,82444.0,82434.0,0.0483]
[1743374069572,0.4181,82444.0,82434.0,0.05072581]
[1743374070018,0.4181,82444.0,82436.0,0.01213]
[1743374070214,0.4181,82444.0,82437.0,0.0024258]
[1743374072237,0.001,82443.0,82437.0,0.0024258]
[1743374072493,0.0001682,82446.0,82437.0,0.0024258]
[1743374073317,0.242588,82445.0,82434.0,0.0483]
[1743374073524,0.242588,82445.0,82435.0,0.00242578]
[1743374073923,0.254725,82442.0,82434.0,0.0483]
[1743374074124,0.242606,82439.0,82433.0,0.0755]
[1743374074344,0.242597,82441.0,82433.0,0.0755]
[1743374075367,0.0011682,82446.0,82437.0,0.01213]
[1743374075575,0.0001682,82446.0,82439.0,0.254732]
[1743374075800,0.0001682,82446.0,82445.0,0.012129]
[1743374076011,0.0001682,82446.0,82445.0,0.12280444]
[1743374077079,0.0001682,82446.0,82445.0,0.19830444]
[1743374077288,0.0001682,82446.0,82445.0,0.13835456]
[1743374077509,0.0001682,82446.0,82445.0,0.14235456]
[1743374078113,0.0001682,82446.0,82445.0,0.14735456]
[1743374078555,0.0001682,82446.0,82445.0,0.1423542]
[1743374078876,0.0001682,82446.0,82445.0,0.25755282]
[1743374079072,0.0001682,82446.0,82445.0,0.26012762]
[1743374079483,0.0001682,82446.0,82445.0,0.25512762]
[1743374079690,0.004,82449.0,82445.0,0.25512762]
[1743374079691,0.004,82449.0,82448.0,0.02666885]
[1743374079895,0.004,82449.0,82448.0,0.31381366]
[1743374080101,0.004,82449.0,82448.0,0.43167368]
[1743374080835,0.0001682,82453.0,82452.0,0.330193]
[1743374081641,0.0001682,82453.0,82452.0,0.39803385]
[1743374082184,0.0001682,82453.0,82452.0,0.40403385]
[1743374083018,0.0001682,82453.0,82452.0,0.41003385]
[1743374083322,0.0001682,82453.0,82452.0,0.53031868]
[1743374084160,0.00073364,82462.0,82453.0,0.465828]
[1743374084363,0.00073364,82462.0,82453.0,0.60065368]
[1743374084567,0.00073364,82462.0,82461.0,0.259664]
[1743374084791,0.00073364,82462.0,82461.0,0.39790485]
[1743374084965,0.00073364,82462.0,82461.0,0.46687494]
[1743374085814,0.00073364,82462.0,82461.0,0.47287494]
[1743374086198,0.00073364,82462.0,82461.0,0.47887494]
[1743374086559,9.6e-07,82466.0,82465.0,0.27419385]
[1743374086764,9.6e-07,82466.0,82465.0,0.55373385]
[1743374086969,9.6e-07,82466.0,82465.0,0.67401868]
[1743374087183,4e-07,82475.0,82474.0,0.259625]
[1743374087386,4e-07,82475.0,82474.0,0.92844585]
[1743374088806,4e-07,82475.0,82474.0,0.93444585]
[1743374089015,4e-07,82475.0,82474.0,1.05473068]
[1743374089217,4e-07,82475.0,82474.0,1.06073068]
[1743374089439,4e-07,82475.0,82474.0,1.19698983]
[1743374090608,0.0001685,82475.0,82474.0,1.19698983]
[1743374091104,0.0001685,82475.0,82474.0,1.22076472]
[1743374096843,0.0001685,82475.0,82474.0,1.19698983]
[1743374099609,0.0001685,82475.0,82474.0,0.920905]
[1743374099786,0.0001685,82475.0,82474.0,1.076625]
[1743374101039,0.0001685,82475.0,82474.0,1.064625]
[1743374101244,0.0001685,82475.0,82474.0,0.50148585]
[1743374101445,0.0001685,82475.0,82474.0,0.56818585]
[1743374101651,0.0001685,82475.0,82474.0,0.65760379]
[1743374102056,0.0001685,82475.0,82474.0,0.548605]
[1743374102262,0.0001685,82475.0,82474.0,0.012]
[1743374102464,0.0001685,82475.0,82474.0,0.16768]
[1743374102624,0.0001685,82475.0,82474.0,0.18222962]
[1743374103631,0.0001685,82475.0,82474.0,0.01442462]
[1743374103848,0.0001685,82475.0,82474.0,0.17010462]
[1743374104668,0.0001685,82475.0,82474.0,0.18222962]
[1743374105083,0.0001685,82475.0,82474.0,0.17010462]
[1743374105280,0.0001685,82475.0,82474.0,0.16768]
[1743374105483,0.0001685,82475.0,82474.0,0.17010472]
[1743374105752,0.0001685,82475.0,82474.0,0.42472972]
[1743374105944,0.0001685,82475.0,82474.0,0.47433245]
[1743374108307,0.0001685,82475.0,82474.0,0.422305]
[1743374111647,0.0001685,82475.0,82474.0,0.505205]
[1743374112872,0.0001685,82475.0,82474.0,0.4995412]
[1743374113107,0.0001685,82475.0,82474.0,0.5055412]
[1743374113279,0.0001685,82475.0,82474.0,0.4995412]
[1743374113613,0.0001685,82475.0,82474.0,0.61430246]
[1743374114054,0.0001685,82475.0,82474.0,0.60830246]
[1743374114431,0.0001685,82475.0,82474.0,0.62884331]
[1743374114628,5e-07,82475.0,82474.0,0.68224331]
[1743374115830,5e-07,82475.0,82474.0,0.67624331]
[1743374116632,5e-07,82475.0,82474.0,0.68224331]
[1743374117990,0.00108498,82495.0,82494.0,0.012122]
[1743374118146,0.00108498,82495.0,82494.0,0.17014596]
[1743374118792,0.3,82509.0,82501.0,0.242421]
[1743374119337,0.13533688,82510.0,82502.0,0.254535]
[1743374119516,0.00108349,82515.0,82509.0,0.012119]
[1743374119745,0.00108349,82515.0,82510.0,0.00242361]
[1743374119946,0.01588198,82515.0,82510.0,0.00242361]
[1743374120122,0.3,82519.0,82510.0,0.00242361]
[1743374120423,0.3,82519.0,82510.0,0.05478237]
[1743374121056,0.31543993,82521.0,82510.0,0.15556]
[1743374121267,0.01543993,82521.0,82510.0,0.15556]
[1743374121467,0.3,82519.0,82510.0,0.15798352]
[1743374121666,0.00070776,82522.0,82514.0,0.012119]
[1743374121846,0.00070776,82522.0,82521.0,0.25448]
[1743374122051,0.00070776,82522.0,82519.0,0.012118]
[1743374122052,0.01542378,82522.0,82519.0,0.012118]
[1743374122247,0.00070776,82522.0,82520.0,0.00242326]
[1743374123554,0.00070776,82522.0,82520.0,0.00542326]
[1743374123801,0.00070776,82522.0,82520.0,0.00942326]
[1743374124678,0.00070776,82522.0,82520.0,0.007]
[1743374125300,0.00070776,82522.0,82521.0,0.012118]
[1743374125498,0.00070776,82522.0,82521.0,0.0024233]
[1743374126459,0.00070776,82522.0,82521.0,0.0064233]
[1743374126659,0.00070776,82522.0,82521.0,0.0094233]
[1743374126814,0.00070776,82522.0,82521.0,0.0215413]
[1743374127211,0.00070776,82522.0,82521.0,0.08343413]
[1743374127595,0.00070776,82522.0,82521.0,0.07943413]
[1743374127795,0.00070776,82522.0,82521.0,0.08343413]
[1743374127993,0.00070776,82522.0,82521.0,0.15973372]
[1743374128221,0.00070776,82522.0,82521.0,0.16031083]
[1743374128433,0.00070776,82522.0,82521.0,0.15973367]
[1743374128831,0.00070776,82522.0,82521.0,0.16373367]
[1743374129184,0.00070776,82522.0,82521.0,0.15573367]
[1743374129519,0.00070776,82522.0,82521.0,0.16673367]
[1743374129897,0.00070776,82522.0,82521.0,0.16173367]
[1743374130102,0.00070776,82522.0,82521.0,0.17627452]
[1743374130343,0.00070776,82522.0,82521.0,0.18227452]
[1743374131464,0.00070776,82522.0,82521.0,0.18727447]
[1743374131692,0.00070776,82522.0,82521.0,0.18485168]
[1743374133495,0.00070776,82522.0,82521.0,0.20985168]
[1743374133744,0.00070776,82522.0,82521.0,0.63013651]
[1743374134144,0.00070776,82522.0,82521.0,0.62413651]
[1743374134556,0.00070776,82522.0,82521.0,0.61813651]
[1743374134954,3.7e-07,82525.0,82524.0,0.63877]
[1743374135160,6.8e-07,82543.0,82540.0,0.012115]
[1743374135365,1.4e-07,82545.0,82544.0,0.017114]
[1743374135569,1.4e-07,82545.0,82544.0,0.27394985]
[1743374136381,0.00046986,82545.0,82544.0,0.27394985]
[1743374136782,0.00046986,82545.0,82544.0,0.42934985]
[1743374136985,0.00046986,82545.0,82544.0,0.57369626]
[1743374137194,0.00046986,82545.0,82544.0,0.57869626]
[1743374137774,0.00046986,82545.0,82544.0,0.58790784]
[1743374137995,0.00046986,82545.0,82544.0,0.59190784]
[1743374138322,0.00046986,82545.0,82544.0,0.59186784]
[1743374140349,0.00046986,82545.0,82544.0,0.43150784]
[1743374140575,0.00046986,82545.0,82544.0,0.58782784]
[1743374140984,0.00046986,82545.0,82544.0,0.59282784]
[1743374143115,0.00046986,82545.0,82544.0,0.71311267]
[1743374143568,0.00046986,82545.0,82544.0,0.40875541]
[1743374143770,0.00046986,82545.0,82544.0,0.419729]
[1743374143997,0.00046986,82545.0,82544.0,0.264409]
[1743374144193,0.00046986,82545.0,82544.0,0.177434]
[1743374144346,0.00046986,82545.0,82544.0,0.17985658]
[1743374144752,0.00046986,82545.0,82544.0,0.172434]
[1743374144955,0.00046986,82545.0,82544.0,0.167434]
[1743374145157,0.00046986,82545.0,82544.0,0.173434]
[1743374145376,0.00046986,82545.0,82544.0,0.18181647]
[1743374145755,0.00046986,82545.0,82544.0,0.17581647]
[1743374145958,0.00046986,82545.0,82544.0,0.27032372]
[1743374146328,0.00046986,82545.0,82544.0,0.27390125]
[1743374146682,0.00064031,82550.0,82549.0,0.254394]
[1743374146843,0.00078118,82550.0,82549.0,0.254394]
[1743374148413,0.00078118,82550.0,82549.0,0.40243485]
[1743374148579,0.00094938,82550.0,82549.0,0.40743485]
[1743374149186,0.00094938,82550.0,82549.0,0.43213244]
[1743374149388,0.00094938,82550.0,82549.0,1.11746598]
[1743374149612,0.00094938,82550.0,82549.0,1.41746598]
[1743374149807,4e-07,82556.0,82555.0,0.10865385]
[1743374150245,4e-07,82556.0,82555.0,0.23789155]
[1743374150388,4e-07,82556.0,82555.0,0.35817638]
[1743374150795,2.6e-07,82561.0,82560.0,0.017112]
[1743374151661,0.00082829,82575.0,82569.0,0.005]
[1743374151901,0.00082829,82575.0,82561.0,0.09154085]
[1743374151902,9e-08,82582.0,82581.0,0.082]
[1743374152129,0.000168,82605.0,82581.0,0.082]
[1743374152130,0.00087205,82620.0,82619.0,0.012103]
[1743374152262,0.00101305,82620.0,82619.0,0.16976339]
[1743374152464,0.00101305,82620.0,82619.0,0.23757633]
[1743374152713,0.00101305,82620.0,82619.0,0.23515594]
[1743374152884,0.00101305,82620.0,82619.0,0.2375763]
[1743374153675,0.00101305,82620.0,82619.0,0.23515594]
[1743374154288,0.000168,82633.0,82619.0,0.23515594]
[1743374154289,2.9e-07,82622.0,82621.0,0.01454085]
[1743374154500,2.9e-07,82622.0,82621.0,0.02906357]
[1743374155104,2.9e-07,82622.0,82621.0,0.5313484]
[1743374155328,2.9e-07,82628.0,82627.0,0.259153]
[1743374155530,2.9e-07,82628.0,82627.0,0.50165783]
[1743374155731,2.9e-07,82628.0,82627.0,0.381373]
[1743374156002,2.9e-07,82628.0,82627.0,0.376373]
[1743374156576,2.9e-07,82628.0,82627.0,0.378373]
[1743374157001,0.01000029,82628.0,82627.0,0.49865783]
[1743374157313,0.01000029,82628.0,82627.0,0.383373]
[1743374157687,0.01000029,82628.0,82627.0,0.384373]
[1743374158219,0.01000029,82628.0,82627.0,0.381373]
[1743374158371,0.01000029,82628.0,82627.0,0.385373]
[1743374158589,2.9e-07,82629.0,82628.0,0.08004285]
[1743374158801,2.9e-07,82629.0,82628.0,0.26920108]
[1743374158989,2.9e-07,82629.0,82628.0,0.26678188]
[1743374159384,2.9e-07,82633.0,82632.0,0.27367785]
[1743374159636,2.9e-07,82633.0,82632.0,0.51424751]
[1743374160142,2.9e-07,82633.0,82632.0,0.81424751]
[1743374160374,0.004,82659.0,82652.0,0.005]
[1743374160520,0.00446983,82659.0,82658.0,0.254058]
[1743374160886,0.00446983,82659.0,82658.0,0.334758]
[1743374161101,0.00446983,82659.0,82658.0,0.43651299]
[1743374161310,0.00446983,82659.0,82658.0,0.45605384]
[1743374161976,0.00446983,82659.0,82658.0,0.45805384]
[1743374162185,0.00446983,82659.0,82658.0,0.256058]
[1743374162406,0.00446983,82659.0,82658.0,0.15908]
[1743374162619,0.00446983,82659.0,82658.0,0.171178]
[1743374163595,0.00446983,82659.0,82658.0,0.1735971]
[1743374163798,0.01446983,82659.0,82658.0,0.1735971]
[1743374163996,0.01446983,82659.0,82658.0,0.24176931]
[1743374164208,0.01446983,82659.0,82658.0,0.004]
[1743374164579,0.01446983,82659.0,82658.0,0.171138]
[1743374164800,0.01811414,82659.0,82658.0,0.17355705]
[1743374165001,0.00946983,82659.0,82658.0,0.17355705]
[1743374165155,0.00946983,82659.0,82658.0,0.24293576]
[1743374165332,0.00946983,82659.0,82658.0,0.24051671]
[1743374165539,0.00936935,82659.0,82658.0,0.24051671]
[1743374166172,0.00936935,82659.0,82658.0,0.23651671]
[1743374166370,0.00936935,82659.0,82658.0,0.24051671]
[1743374166570,0.00936935,82659.0,82658.0,0.08547671]
[1743374166886,0.00936935,82659.0,82658.0,0.24047671]
[1743374167489,0.00936935,82659.0,82658.0,0.24347671]
[1743374169261,0.00936935,82659.0,82658.0,0.23947671]
[1743374169601,0.00936935,82659.0,82658.0,0.24547671]
[1743374169984,0.00936935,82659.0,82658.0,0.24247671]
[1743374170767,0.00936935,82659.0,82658.0,0.24747671]
[1743374170974,0.00936935,82659.0,82658.0,0.24147671]
[1743374171291,0.00936935,82659.0,82658.0,0.24747671]
[1743374171494,0.00936935,82659.0,82658.0,0.25347671]
[1743374171666,0.00936935,82659.0,82658.0,0.26201756]
[1743374171869,0.00936935,82659.0,82658.0,0.46300239]
[1743374172074,0.00953735,82659.0,82658.0,0.46900239]
[1743374172673,0.00953735,82659.0,82658.0,0.46300239]
[1743374173069,0.00953735,82659.0,82658.0,0.46900239]
[1743374173469,3.5e-07,82659.0,82658.0,0.49400239]
[1743374173723,3.5e-07,82659.0,82658.0,0.49396239]
[1743374174093,3.5e-07,82659.0,82658.0,0.33300239]
[1743374174306,3.5e-07,82659.0,82658.0,0.48196239]
[1743374174505,3.5e-07,82659.0,82658.0,0.48796239]
[1743374174718,3.5e-07,82659.0,82658.0,0.91326239]
[1743374174909,3.5e-07,82659.0,82658.0,0.90126239]
[1743374175312,3.5e-07,82659.0,82658.0,0.91326239]
[1743374175569,3.5e-07,82659.0,82658.0,1.21326239]
[1743374176095,3.5e-07,82659.0,82658.0,1.20726239]
[1743374176446,0.012312,82669.0,82668.0,0.259027]
[1743374176655,0.01245283,82669.0,82668.0,0.44886828]
[1743374177623,0.01245283,82669.0,82668.0,0.3090426]
[1743374177827,0.01245283,82669.0,82668.0,0.408947]
[1743374178035,0.01245283,82669.0,82668.0,0.260027]
[1743374178235,0.01245283,82669.0,82668.0,0.420947]
[1743374178599,0.01245283,82669.0,82668.0,0.012]
[1743374178754,0.01245283,82669.0,82662.0,0.15492]
[1743374178755,0.04066413,82669.0,82662.0,0.15492]
[1743374179104,0.05066413,82669.0,82668.0,0.012]
[1743374179261,0.05066413,82669.0,82668.0,0.006]
[1743374179835,0.05066413,82669.0,82668.0,0.034188]
[1743374179959,0.02245283,82669.0,82668.0,0.03660692]
[1743374180178,8e-05,82685.0,82682.0,0.24189]
[1743374180375,8e-05,82685.0,82684.0,0.012094]
[1743374180967,8e-05,82685.0,82684.0,0.01451221]
[1743374181243,8e-05,82685.0,82684.0,0.17411218]
[1743374181512,1e-06,82689.0,82688.0,0.253966]
[1743374181692,1e-06,82689.0,82688.0,0.51829168]
[1743374181920,0.01248,82699.0,82698.0,0.253935]
[1743374181921,8.3e-07,82699.0,82698.0,0.253935]
[1743374182127,0.00014158,82699.0,82698.0,0.278935]
[1743374182448,0.00014158,82699.0,82698.0,0.37765885]
[1743374182578,0.004,82719.0,82698.0,0.37765885]
[1743374182579,9.552e-05,82705.0,82704.0,0.253917]
[1743374183339,9.552e-05,82705.0,82698.0,0.02234661]
[1743374183513,0.012091,82700.0,82698.0,0.02234661]
[1743374183849,9.552e-05,82705.0,82698.0,0.02234661]
[1743374183850,0.02345421,82704.0,82703.0,0.012091]
[1743374183979,0.01009552,82705.0,82703.0,0.05447089]
[1743374184175,0.01009552,82705.0,82699.0,0.012092]
[1743374184375,0.01009552,82705.0,82696.0,0.012092]
[1743374184679,0.01009552,82705.0,82693.0,0.16508]
[1743374184881,0.01009552,82705.0,82674.0,0.02368552]
[1743374184882,0.012092,82697.0,82682.0,0.253982]
[1743374185084,0.22625299,82690.0,82689.0,0.00014075]
[1743374185280,0.012093,82690.0,82689.0,0.00014075]
[1743374185765,0.253935,82698.0,82689.0,0.00014075]
[1743374185879,0.012092,82696.0,82689.0,0.00014075]
[1743374186090,0.253944,82695.0,82689.0,0.00014075]
[1743374186319,0.253945,82695.0,82689.0,0.00014075]
[1743374186718,0.241866,82691.0,82689.0,0.00014075]
[1743374186924,0.31451885,82690.0,82689.0,0.00014075]
[1743374187124,0.31579366,82690.0,82689.0,0.00014075]
[1743374187404,0.254021,82670.0,82650.0,0.16832]
[1743374187609,0.254021,82670.0,82654.0,0.012098]
[1743374187809,0.25764326,82670.0,82655.0,0.00241932]
[1743374188016,0.012096,82669.0,82656.0,0.012098]
[1743374188244,0.012096,82669.0,82659.0,0.00047663]
[1743374188245,0.012096,82667.0,82659.0,0.00047663]
[1743374188450,0.012096,82666.0,82659.0,0.00047663]
[1743374188658,0.00364729,82666.0,82659.0,0.00047663]
[1743374189089,0.012097,82660.0,82659.0,0.00047663]
[1743374189520,0.01571769,82660.0,82659.0,0.00047663]
[1743374189725,0.31814354,82660.0,82659.0,0.00347663]
[1743374189933,0.31571769,82660.0,82659.0,0.00347663]
[1743374190141,0.31571769,82660.0,82659.0,0.00047663]
[1743374190550,0.32700834,82660.0,82659.0,0.00047663]
[1743374190935,0.55686534,82660.0,82659.0,0.00047663]
[1743374191144,0.57896234,82660.0,82659.0,0.00547663]
[1743374191351,0.57896234,82660.0,82659.0,0.01147663]
[1743374191782,0.57896234,82660.0,82659.0,0.00547663]
[1743374191783,0.02491134,82660.0,82659.0,0.00547663]
[1743374191919,0.01362069,82660.0,82659.0,0.00547663]
[1743374192116,0.01362069,82660.0,82659.0,0.00347663]
[1743374192662,0.01362069,82660.0,82659.0,0.00647663]
[1743374193061,0.02571769,82660.0,82659.0,0.00647663]
[1743374193279,0.02814354,82660.0,82659.0,0.00647663]
[1743374193489,0.02571769,82660.0,82659.0,0.00647663]
[1743374194069,0.241983,82651.0,82644.0,0.000336]
[1743374194269,0.012098,82656.0,82644.0,0.000336]
[1743374194467,0.254054,82659.0,82646.0,0.012099]
[1743374194468,0.00360138,82650.0,82646.0,0.012099]
[1743374194683,0.24197,82655.0,82647.0,0.00241959]
[1743374194905,0.24197,82655.0,82646.0,0.00241964]
[1743374195104,0.01971228,82654.0,82646.0,0.00241964]
[1743374195258,0.01971228,82654.0,82644.0,0.000336]
[1743374195466,0.01971228,82654.0,82644.0,0.002336]
[1743374195884,0.241975,82653.0,82644.0,0.000336]
[1743374196305,0.241982,82651.0,82644.0,0.000336]
[1743374196715,0.241984,82650.0,82644.0,0.000336]
[1743374196916,0.241997,82646.0,82644.0,0.003336]
[1743374197361,0.01973818,82645.0,82644.0,0.000336]
[1743374197517,0.01973818,82645.0,82644.0,0.003336]
[1743374197915,0.03102657,82645.0,82644.0,0.000336]
[1743374198122,0.0121,82643.0,82631.0,0.162536]
[1743374198320,0.03463385,82645.0,82640.0,0.242012]
[1743374198656,0.00362491,82642.0,82637.0,0.254123]
[1743374198858,0.00362491,82642.0,82639.0,0.0121]
[1743374199002,0.01128839,82645.0,82644.0,0.242001]
[1743374199202,0.01128839,82645.0,82644.0,0.254101]
[1743374199421,0.3101406,82660.0,82649.0,0.012099]
[1743374199761,0.3101406,82660.0,82657.0,0.254061]
[1743374199762,0.01971074,82659.0,82657.0,0.254061]
[1743374199967,0.01971074,82659.0,82658.0,0.012098]
[1743374200180,0.0101406,82660.0,82659.0,0.254054]
[1743374200624,0.0101406,82660.0,82659.0,0.333454]
[1743374200896,0.0101406,82660.0,82659.0,0.4460193]
[1743374201403,0.0101406,82660.0,82659.0,0.333454]
[1743374201881,0.0101406,82660.0,82659.0,0.34799485]
[1743374202094,0.25192052,82705.0,82668.0,0.259027]
[1743374202270,0.25192052,82705.0,82668.0,0.68827268]
[1743374202476,0.25192052,82705.0,82668.0,0.80855751]
[1743374202671,0.241832,82702.0,82668.0,0.80855751]
[1743374203090,0.012091,82704.0,82668.0,0.548447]
[1743374203091,0.012092,82695.0,82668.0,0.548447]
[1743374203233,0.241853,82695.0,82668.0,0.548447]
[1743374203803,0.241856,82694.0,82668.0,0.554447]
[1743374204068,0.241863,82692.0,82668.0,0.554447]
[1743374204220,0.241856,82694.0,82668.0,0.554447]
[1743374204221,0.241874,82688.0,82668.0,0.554447]
[1743374204422,0.241853,82695.0,82668.0,0.387127]
[1743374204638,0.241848,82697.0,82668.0,0.549407]
[1743374204801,0.241853,82695.0,82668.0,0.549407]
[1743374205222,0.0101679,82669.0,82668.0,0.555407]
[1743374205424,0.0101679,82669.0,82668.0,0.25368]
[1743374205773,0.0101679,82669.0,82668.0,0.018096]
[1743374206125,0.0101679,82669.0,82668.0,0.192336]
[1743374206339,0.0101679,82669.0,82668.0,0.19475492]
[1743374206512,0.0101679,82669.0,82668.0,0.30817741]
[1743374206712,0.0101679,82669.0,82668.0,0.30575849]
[1743374206958,0.0101679,82669.0,82668.0,0.29975849]
[1743374207162,0.0101679,82669.0,82668.0,0.30575849]
[1743374207496,0.0101679,82669.0,82668.0,0.29975849]
[1743374207767,0.0101679,82669.0,82668.0,0.39709934]
[1743374207978,9e-07,82669.0,82668.0,0.96668417]
[1743374208139,9e-07,82669.0,82668.0,1.01458417]
[1743374208337,0.01009552,82705.0,82704.0,0.253917]
[1743374208554,0.01023633,82705.0,82704.0,0.253917]
[1743374209343,0.241776,82722.0,82712.0,0.01209]
[1743374209547,0.02349922,82721.0,82712.0,0.253891]
[1743374209744,0.241782,82719.0,82709.0,0.01209]
[1743374209949,0.01970395,82718.0,82708.0,0.01209]
[1743374210248,0.241789,82717.0,82707.0,0.253906]
[1743374210449,0.01970691,82716.0,82707.0,0.253906]
[1743374210651,0.01970691,82716.0,82715.0,0.012089]
[1743374210948,0.241762,82726.0,82715.0,0.253883]
[1743374211148,0.00376877,82725.0,82720.0,0.012088]
[1743374211423,0.24188773,82731.0,82716.0,0.012089]
[1743374211424,0.012087,82730.0,82716.0,0.012089]
[1743374211631,0.241757,82728.0,82719.0,0.012089]
[1743374211896,0.241757,82728.0,82720.0,0.241779]
[1743374212031,0.00378651,82727.0,82721.0,0.012088]
[1743374212232,0.24188973,82731.0,82721.0,0.012088]
[1743374212432,0.00378062,82730.0,82723.0,0.012088]
[1743374212644,0.00378062,82730.0,82729.0,0.012087]
[1743374212845,0.00014073,82731.0,82730.0,0.253837]
[1743374213108,0.00014073,82731.0,82727.0,0.012087]
[1743374213551,0.00014073,82731.0,82729.0,0.012087]
[1743374213725,0.00014073,82731.0,82730.0,0.253837]
[1743374213930,0.00014073,82731.0,82730.0,0.331199]
[1743374214364,0.00014073,82731.0,82730.0,0.334199]
[1743374214515,0.01014073,82731.0,82730.0,0.334199]
[1743374215067,0.01014073,82731.0,82730.0,0.43283985]
[1743374215283,0.0001683,82742.0,82741.0,0.35444385]
[1743374215487,3e-07,82742.0,82741.0,0.64600868]
[1743374215693,0.00046929,82742.0,82741.0,0.47472868]
[1743374215899,0.00046929,82742.0,82741.0,0.64592868]
[1743374216317,8e-08,82752.0,82751.0,0.339872]
[1743374216461,0.012077,82802.0,82751.0,0.339872]
[1743374216462,0.012076,82808.0,82778.0,0.32813942]
[1743374216667,0.241535,82804.0,82778.0,0.32813942]
[1743374216869,0.00414067,82779.0,82778.0,0.50109942]
[1743374217228,0.00414067,82779.0,82778.0,0.6409251]
[1743374217432,0.00414067,82779.0,82778.0,0.51564027]
[1743374217660,0.00414067,82779.0,82778.0,0.37290634]
[1743374217863,0.00414067,82779.0,82778.0,0.54798634]
[1743374218514,0.241557,82796.0,82782.0,0.012079]
[1743374218687,0.241567,82793.0,82783.0,0.17508]
[1743374219048,0.241577,82789.0,82783.0,0.17508]
[1743374219368,0.241587,82786.0,82783.0,0.17508]
[1743374219876,0.241595,82783.0,82782.0,0.003]
[1743374220070,0.253674,82783.0,82782.0,0.003]
[1743374220504,0.553674,82783.0,82782.0,0.003]
[1743374221138,0.012081,82772.0,82757.0,0.241671]
[1743374221332,0.241635,82770.0,82758.0,0.00014067]
[1743374221553,0.012083,82759.0,82758.0,0.00014067]
[1743374222467,0.00386645,82759.0,82758.0,0.00014067]
[1743374222666,0.012082,82766.0,82758.0,0.00014067]
[1743374222844,0.02383707,82765.0,82759.0,0.012083]
[1743374223026,0.241657,82762.0,82758.0,0.00014067]
[1743374223227,0.24165,82764.0,82758.0,0.00214067]
[1743374223430,0.02383707,82765.0,82758.0,0.04739964]
[1743374223649,0.02383707,82765.0,82762.0,0.241656]
[1743374223840,0.541609,82779.0,82768.0,0.012081]
[1743374224047,0.012082,82767.0,82760.0,0.17692]
[1743374224256,0.36772534,82770.0,82760.0,0.17692]
[1743374224458,0.01988955,82769.0,82758.0,0.01222367]
[1743374224658,0.01988955,82769.0,82760.0,0.17692]
[1743374224867,0.01988955,82769.0,82768.0,0.25372]
[1743374225065,0.0001681,82813.0,82777.0,0.01208]
[1743374225066,0.012078,82795.0,82777.0,0.01208]
[1743374225277,0.36772534,82790.0,82781.0,0.01208]
[1743374225571,0.01984519,82789.0,82782.0,0.1768]